Cogmind - Beta 11 X5 @@@ ROGUE MODE // 2021.07.15 @ 16:39:07 Player: Kenzurith Result: Destroyed by B-75 Beast with Heavy Plasma Cannon Performance ------------- Evolutions (4) 2000 Regions Visited (13) 2600 Robots Destroyed (129) 645 Value Destroyed (7096) 7096 Prototype IDs (25) 500 Alien Tech Used (0) 0 Bonus (3831) 3831 TOTAL SCORE: 16672 Bonus ------- High Alert Combat Kills 1264 Follower Combat Kills 234 Entered Garrisons 800 Used RIF Installer 1500 Aligned with FarCom 300 Friendly Fire -267 Cogmind --------- Core Integrity 0/850 Matter 136/300 Energy 253/290 System Corruption 5% Temperature Danger (454) Movement Walking (120) Location -6/Garrison Parts ------- > --- POWER (1) -------- Reinforced Deuterium Engine > --- PROPULSION (4) --- Carbon-fiber Leg Flexi-carbon Leg Flexi-carbon Leg Flexi-carbon Leg > --- UTILITY (8) ------ Improved Heat Sink High-capacity Storage Unit Advanced Salvage Targeting Computer Advanced Targeting Computer Relay Coupler [NC] (30) Relay Coupler [Swarmer] (29) Relay Coupler [Grunt] (28) Relay Coupler [Sentry] (19) > --- WEAPON (2) ------- Phase Gun Advanced Plasma Cannon > --- INVENTORY (20) --- Light Fission Core Light Fission Core Light Treads Light Treads High-capacity Storage Unit Improved Sensor Array Improved Weapon Cycler Medium Reactive Plating Relay Coupler [Grunt] (30) Relay Coupler [Duelist] (29) Latent Energy Streamer Advanced Plasma Cannon Advanced Plasma Cannon Hypervelocity Mass Driver Hypervelocity Mass Driver Grenade Launcher Remote Datajack Chainsword Peak State ------------ > --- POWER ------------ Improved Deuterium Engine > --- PROPULSION ------- Carbon-fiber Leg Carbon-fiber Leg Flexi-carbon Leg Flexi-carbon Leg > --- UTILITY ---------- Advanced Heat Sink High-capacity Storage Unit Advanced Salvage Targeting Computer Advanced Targeting Computer Improved Light Armor Plating Relay Coupler [Swarmer] Relay Coupler [Sentry] Relay Coupler [Hunter] > --- WEAPON ----------- Hardcell Cannon Hardcell Cannon > --- INVENTORY -------- Medium Treads Carbon-fiber Leg Carbon-fiber Leg Carbon-fiber Leg High-capacity Storage Unit Improved Sensor Array Medium Reactive Plating Relay Coupler [NC] Relay Coupler [Grunt] Relay Coupler [Grunt] Phase Gun Phase Gun Latent Energy Streamer Railgun Railgun Railgun Grenade Launcher Remote Datajack Remote Datajack Chainsword [Rating: 72] Favorites ----------- Power Ion Engine Engine Ion Engine Power Core Light Nuclear Core Propulsion Light Treads Treads Light Treads Leg Flexi-carbon Leg Wheel Armored Huge Wheel Utility Advanced Targeting Computer Device Advanced Heat Sink Storage High-capacity Storage Unit Processor Advanced Targeting Computer Hackware Relay Coupler [NC] Protection Improved Medium Armor Plating Weapon Assault Rifle Energy Gun Particle Gun Energy Cannon Heavy Ion Cannon Ballistic Gun Assault Rifle Ballistic Cannon Gauss Cannon Launcher Grenade Launcher Special Weapon Remote Datajack Slashing Weapon Chainsword Build | -11 -10 -10 -10 -9 -8 -7 -7 -7 -7 -6 -6 -6 -6 ------- Run | Scr Mat Min Exi Min Mat Fac Gar Fac Gar Fac Gar Fac Gar Slots Evolved 8 | . . . . . 4 2 . . . 2 . . . Power . | . . . . . . . . . . . . . . Propulsion 2 | . . . . . 1 . . . . 1 . . . Utility 6 | . . . . . 3 2 . . . 1 . . . Weapon . | . . . . . . . . . . . . . . Parts Attached 209 | . 12 5 4 4 31 2 13 17 19 6 60 5 31 Power 16 | . 1 1 . . . . 4 3 3 . 3 . 1 Engine 12 | . 1 1 . . . . . 3 3 . 3 . 1 Core 4 | . . . . . . . 4 . . . . . . Reactor . | . . . . . . . . . . . . . . Propulsion 62 | . 6 3 2 . 16 . 1 6 1 1 13 3 10 Treads 26 | . . . 2 . 9 . 1 3 1 . 7 2 1 Leg 30 | . 6 3 . . 6 . . . . . 5 1 9 Wheel 6 | . . . . . 1 . . 3 . 1 1 . . Hover . | . . . . . . . . . . . . . . Flight . | . . . . . . . . . . . . . . Utility 60 | . 4 . 1 . 11 2 2 5 6 3 18 2 6 Device 18 | . . . . . 6 . 1 . 2 . 7 1 1 Storage 4 | . 1 . 1 . . . . . . 2 . . . Processor 10 | . 1 . . . 3 1 . 2 . . 2 . 1 Hackware 16 | . . . . . . . 1 . 3 1 7 1 3 Protection 12 | . 2 . . . 2 1 . 3 1 . 2 . 1 Artifact . | . . . . . . . . . . . . . . Weapon 71 | . 1 1 1 4 4 . 6 3 9 2 26 . 14 Energy Gun 13 | . . 1 . 3 1 . . . 1 1 3 . 3 Energy Cannon 2 | . . . . . . . . 1 . . . . 1 Ballistic Gun 10 | . 1 . 1 . . . . 1 2 . . . 5 Ballistic Cannon 22 | . . . . . 2 . 5 1 3 . 10 . 1 Launcher 6 | . . . . 1 . . 1 . 3 . 1 . . Special Weapon 12 | . . . . . . . . . . . 8 . 4 Impact Weapon . | . . . . . . . . . . . . . . Slashing Weapon 6 | . . . . . 1 . . . . 1 4 . . Piercing Weapon . | . . . . . . . . . . . . . . Special Melee Weapon . | . . . . . . . . . . . . . . Unidentified Prototypes 2 | . . . . . 1 . . . . . . 1 . Parts Lost 46 | . . . . . . . 1 1 2 . 24 2 16 Power 4 | . . . . . . . . 1 . . 3 . . Propulsion 17 | . . . . . . . . . 1 . 7 2 7 Utility 15 | . . . . . . . 1 . 1 . 10 . 3 Weapon 10 | . . . . . . . . . . . 4 . 6 Highest Loss Streak 9 | . . . . . . . 1 1 2 . 6 2 9 Average Slot Usage (%) 92 | . 99 100 100 100 91 90 91 92 91 85 86 86 93 Engine 6 | . 14 14 14 14 9 7 3 2 7 6 2 . 4 Treads 7 | . . . 5 28 12 7 7 7 7 . 5 20 . Leg 9 | . 28 28 22 . 2 . . . . . 13 4 22 Wheel 3 | . . . . . 6 7 7 7 7 13 2 . . Device 4 | . . . . . 9 7 6 7 6 6 4 2 . Storage 8 | . 14 14 14 14 9 7 7 7 7 6 6 6 6 Processor 16 | . 4 14 14 14 16 23 23 23 22 13 12 13 16 Hackware 10 | . . . . . . . . 7 7 19 21 25 25 Protection 4 | . 8 . . . 9 13 14 7 7 6 2 . 1 Energy Gun 2 | . . 2 14 13 5 . . . 2 5 . . 3 Ballistic Gun 6 | . 28 25 14 14 5 . . 1 4 . . . 7 Ballistic Cannon 5 | . . . . . 4 7 12 10 7 6 7 13 . Naked Turns . | . . . . . . . . . . . . . . Heaviest Build 83 | 14 20 20 50 50 68 70 75 80 74 64 83 62 68 Greatest Support 70 | 20 20 20 40 40 60 28 28 28 28 56 70 68 70 Greatest Overweight (x) 17 | . . . 1 1 2 2 2 2 2 1 17 . 4 Average Overweight (x) 1 | . . . . 1 1 2 2 2 2 . . . . Largest Inventory Capacity 20 | 8 10 10 20 20 20 20 20 20 20 20 20 20 20 Average Capacity 18 | 8 8 10 12 20 20 20 20 20 20 19 20 20 20 Most Carried 20 | 6 10 10 12 20 20 20 20 20 20 20 20 20 20 Average Carried 17 | 5 8 10 10 17 19 19 19 19 19 18 18 19 18 Final Capacity 20 | 8 10 10 20 20 20 20 20 20 20 20 20 20 20 Final Carried 20 | 6 10 10 12 20 20 20 20 20 20 20 20 20 18 Class Distribution -------------------- 53% | Bothacker-Mutant 41% | Mutant 4% | Scavenger-Mutant Dominant Class ---------------- Mutant | -10/Materials Mutant | -10/Mines Scavenger-Mutant | -10/Exiles Mutant | -9/Mines Mutant | -8/Materials Mutant | -7/Factory Mutant | -7/Garrison Bothacker-Mutant | -7/Factory Mutant | -7/Garrison Bothacker-Mutant | -6/Factory Bothacker-Mutant | -6/Garrison Bothacker-Mutant | -6/Factory Bothacker-Mutant | -6/Garrison Resources | -11 -10 -10 -10 -9 -8 -7 -7 -7 -7 -6 -6 -6 -6 ----------- Run | Scr Mat Min Exi Min Mat Fac Gar Fac Gar Fac Gar Fac Gar Matter Collected 5502 | 200 259 286 . 127 241 . 471 887 598 35 1503 329 566 Remotely . | . . . . . . . . . . . . . . Salvage Created 4697 | . 452 278 . 97 197 . 286 980 557 30 696 429 695 Parts 217 | . 32 18 . 8 11 . 13 36 29 1 23 10 36 Haulers Intercepted 4 | . 1 . . . 1 . . 2 . . . . . Recyclers Shooed 5 | . 1 . . 1 2 . . 1 . . . . . Parts Field Recycled . | . . . . . . . . . . . . . . Retrieved Matter . | . . . . . . . . . . . . . . Parts Self-Destructed . | . . . . . . . . . . . . . . Prevented . | . . . . . . . . . . . . . . Kills | -11 -10 -10 -10 -9 -8 -7 -7 -7 -7 -6 -6 -6 -6 ------- Run | Scr Mat Min Exi Min Mat Fac Gar Fac Gar Fac Gar Fac Gar Combat Hostiles Destroyed 113 | . 9 7 . 5 4 . 9 20 19 1 26 1 12 Melee 6 | . . . . . 1 . . . . . 5 . . Guns 37 | . 9 7 . 2 1 . . 2 4 . . . 12 Cannons 57 | . . . . . 2 . 9 18 9 1 17 1 . AOE 13 | . . . . 3 . . . . 6 . 4 . . Classes Destroyed 14 | . 6 . . 1 1 . 1 4 1 . . . . Worker 2 | . 1 1 . . . . . . . . . . . Tunneler 2 | . 1 1 . . . . . . . . . . . Hauler 4 | . 1 . . . 1 . . 2 . . . . . Recycler 5 | . 1 . . . . . . 1 . . . 3 . Operator 1 | . . . . . . . . 1 . . . . . Watcher 2 | . . . . . . . . 1 . . 1 . . Swarmer 21 | . 3 3 . 3 . . . . 3 . 7 . 2 Grunt 61 | . 6 4 . 1 2 . 8 12 11 . 13 1 3 Brawler 5 | . . . . 1 . . . 2 1 . . . 1 Duelist 3 | . . . . . . . . 1 . . . . 2 Sentry 12 | . . . . . 2 . . 3 2 . 4 . 1 Specialist 2 | . . . . . . . . . 2 . . . . Hunter 4 | . . . . . . . 1 . . . 1 . 2 Programmer 5 | . . . . . . . . 2 . 1 1 . 1 Best Kill Streak 4 | . 4 3 . 3 1 . 2 3 4 1 4 4 3 Combat Bots Only 4 | . 3 2 . 3 1 . 2 3 4 1 4 1 3 Max Kills in Single Turn 2 | . 2 1 . 1 1 . 1 1 2 1 2 1 1 Gunslinging 1 | . 1 . . . . . . . . . . . . Exploded 2 | . . . . 1 . . . . 2 . 2 . . Melee 1 | . . . . . 1 . . . . . 1 . . Uniques/NPCs Destroyed . | . . . . . . . . . . . . . . Combat | -11 -10 -10 -10 -9 -8 -7 -7 -7 -7 -6 -6 -6 -6 -------- Run | Scr Mat Min Exi Min Mat Fac Gar Fac Gar Fac Gar Fac Gar Damage Taken 10546 | . 490 213 . 33 284 . 687 1156 1333 144 3670 245 2291 Core 1528 | . 93 60 . . 50 . 58 192 212 18 532 37 276 Absorbed by Shields . | . . . . . . . . . . . . . . Core Remaining (%) 65 | 100 . . . 38 90 . . . 34 . . . . Volleys Fired 455 | . 38 25 . 8 28 2 26 67 61 4 117 5 74 Largest 2 | . 2 2 . 2 2 1 2 2 2 2 2 2 2 Hottest 186 | . 40 85 . 85 96 48 96 113 111 111 130 130 186 Shots Fired 778 | . 76 50 . 12 47 2 47 134 109 7 166 10 118 Gun 330 | . 76 50 . 8 32 . . 11 55 3 6 . 89 Cannon 391 | . . . . . 15 2 47 123 47 4 129 10 14 Launcher 14 | . . . . 4 . . . . 7 . 3 . . Special 43 | . . . . . . . . . . . 28 . 15 Kinetic 622 | . 76 49 . 4 31 2 47 105 88 4 129 10 77 Thermal 99 | . . 1 . 4 16 . . 29 14 3 6 . 26 Explosive 14 | . . . . 4 . . . . 7 . 3 . . Electromagnetic . | . . . . . . . . . . . . . . Robot Hit Streak 32 | . 11 10 . 11 24 . 10 20 15 2 32 7 15 Robot Miss Streak 5 | . 5 4 . 1 1 2 2 4 2 3 2 1 3 Penetration Max 1 | . . . . . . . 1 1 . . . . 1 Secondary Targets 2 | . 2 . . . . . . . . . . . . Max Gunslinging Chain 1 | . 1 . . . . . . . . . . . . Shots Hit Robots 557 | . 46 31 . 6 41 . 32 97 78 3 125 7 91 Core Hits 220 | . 21 13 . 6 11 . 20 38 37 1 42 9 22 Critical Kills 2 | . . . . . . . . . 1 . . . 1 Critical Parts Destroyed 2 | . . . . . . . . 1 . . . . 1 Critical Strikes 41 | . . . . . 4 . 9 11 6 . 9 . 2 Burn 1 | . . . . . 1 . . . . . . . . Destroy 4 | . . . . . . . . 1 1 . . . 2 Blast 36 | . . . . . 3 . 9 10 5 . 9 . . Melee Attacks 21 | . . . . . 2 . . . . 4 15 . . Impact . | . . . . . . . . . . . . . . Slashing 21 | . . . . . 2 . . . . 4 15 . . Piercing . | . . . . . . . . . . . . . . Sneak Attacks 5 | . . . . . . . . . . . 5 . . Combat Hostiles 3 | . . . . . . . . . . . 3 . . Follow-up Attacks . | . . . . . . . . . . . . . . Damage Inflicted 14477 | . 618 395 . 257 766 . 891 2675 2150 85 4192 357 2091 Guns 4178 | . 618 395 . 69 445 . . 220 708 41 67 . 1615 Cannons 8527 | . . . . . 287 . 891 2455 1054 32 3054 278 476 Explosions 964 | . . . . 188 . . . . 388 . 388 . . Melee 717 | . . . . . 34 . . . . . 683 . . Ramming 91 | . . . . . . . . . . 12 . 79 . Kinetic 10885 | . 618 378 . 20 474 . 891 2054 1609 32 3054 278 1477 Thermal 1820 | . . 17 . 49 258 . . 621 153 41 67 . 614 Explosive 964 | . . . . 188 . . . . 388 . 388 . . Electromagnetic . | . . . . . . . . . . . . . . Impact . | . . . . . . . . . . . . . . Slashing 717 | . . . . . 34 . . . . . 683 . . Piercing . | . . . . . . . . . . . . . . Highest Corruption 5 | . . . . . . . . . . . . . 5 Average Corruption 5 | . . . . . . . . . . . . . 5 Corruption Purged . | . . . . . . . . . . . . . . Effects 13 | . . . . . . . . . . . . . 13 Message Errors 2 | . . . . . . . . . . . . . 2 Matter Fused 4 | . . . . . . . . . . . . . 4 Heat Flow Errors 2 | . . . . . . . . . . . . . 2 Energy Discharges 3 | . . . . . . . . . . . . . 3 Data Loss (major) 1 | . . . . . . . . . . . . . 1 Misfires 1 | . . . . . . . . . . . . . 1 Overload Shots . | . . . . . . . . . . . . . . Overflow Damage 104 | . . . . 5 . . . 14 7 . 78 . . Projectiles 76 | . . . . . . . . 14 7 . 55 . . Explosions 5 | . . . . 5 . . . . . . . . . Melee 23 | . . . . . . . . . . . 23 . . Knockbacks 53 | . . . . . . . 11 17 9 . 11 1 4 Impact 1 | . . . . . . . . . . . . 1 . Kinetic 49 | . . . . . . . 9 17 8 . 11 . 4 Secondary 3 | . . . . . . . 2 . 1 . . . . Self-Inflicted Damage 13 | . . . . . . . . . 7 6 . . . Shots 1 | . . . . . . . . . 1 . . . . Rammed 14 | . . . . . 1 . . . . 1 . 12 . Targets Rammed 14 | . . . . . 1 . . . . 1 . 12 . Kicked . | . . . . . . . . . . . . . . Crushed . | . . . . . . . . . . . . . . Highest Temperature 442 | . 20 24 . 48 135 8 210 40 25 . 294 36 442 Average Temperature 50 | . 4 9 . 26 34 5 56 11 11 . 58 16 89 Received Heat Transfer 3201 | . 255 72 . 6 135 . 387 471 549 45 1011 126 144 Siege Activations . | . . . . . . . . . . . . . . Robots Corrupted . | . . . . . . . . . . . . . . Combat Hostiles . | . . . . . . . . . . . . . . Parts Fried . | . . . . . . . . . . . . . . Impact Corruptions . | . . . . . . . . . . . . . . Robots Melted . | . . . . . . . . . . . . . . Combat Hostiles . | . . . . . . . . . . . . . . Parts Melted 2 | . . . . . . . . . . 1 . . 1 Heat Transferred 3038 | . . 37 . 111 629 . . 851 333 74 148 . 855 Parts Sabotaged . | . . . . . . . . . . . . . . Parts Stolen . | . . . . . . . . . . . . . . Parts Stripped . | . . . . . . . . . . . . . . Power Chain Reactions . | . . . . . . . . . . . . . . Missiles Intercepted . | . . . . . . . . . . . . . . Alert | -11 -10 -10 -10 -9 -8 -7 -7 -7 -7 -6 -6 -6 -6 ------- Run | Scr Mat Min Exi Min Mat Fac Gar Fac Gar Fac Gar Fac Gar Peak Influence 1393 | . 210 250 . 135 102 62 443 996 1393 797 1179 651 712 Initial 730 | . . 40 . . . 46 53 232 631 730 557 618 455 Average 524 | . 88 114 . 23 36 56 254 379 1017 739 911 621 627 Maximum Alert Level 4 | . 1 1 . . . . 2 3 4 3 4 2 3 Low Security (%) 30 | 100 93 83 . 100 100 100 38 6 . . . . . Level 1 17 | . 6 16 . . . . 52 80 . . . . . Level 2 13 | . . . . . . . 8 2 4 . 18 100 62 Level 3 28 | . . . . . . . . 11 59 100 57 . 37 Level 4 10 | . . . . . . . . . 36 . 23 . . Level 5 . | . . . . . . . . . . . . . . High Security . | . . . . . . . . . . . . . . Max Security . | . . . . . . . . . . . . . . Squads Dispatched 17 | . 2 . . . 1 . . 11 . 2 . 1 . Investigation 1 | . . . . . . . . . . 1 . . . Extermination 4 | . . . . . . . . 3 . 1 . . . Reinforcement 11 | . 2 . . . 1 . . 7 . . . 1 . Assault 1 | . . . . . . . . 1 . . . . . Garrison . | . . . . . . . . . . . . . . Intercept . | . . . . . . . . . . . . . . Construction Impeded 1 | . . . . . . . . 1 . . . . . Haulers Reinforced 3 | . . . . . . . . 2 . . . 1 . Cargo Convoy Interrupts 1 | . . . . . . . . 1 . . . . . Stealth | -11 -10 -10 -10 -9 -8 -7 -7 -7 -7 -6 -6 -6 -6 --------- Run | Scr Mat Min Exi Min Mat Fac Gar Fac Gar Fac Gar Fac Gar Distress Signals 9 | . 1 . . . 1 . . 2 . . 4 1 . Communications Jammed . | . . . . . . . . . . . . . . Distress Signals . | . . . . . . . . . . . . . . Times Spotted 195 | . 19 10 . 6 10 1 8 37 27 6 49 3 19 Peak Tracking Total 9 | . 6 3 . 3 4 1 4 9 4 4 5 2 6 Tactical Retreats 17 | . . 2 . 1 2 . . . 8 . . . 4 Traps | -11 -10 -10 -10 -9 -8 -7 -7 -7 -7 -6 -6 -6 -6 ------- Run | Scr Mat Min Exi Min Mat Fac Gar Fac Gar Fac Gar Fac Gar Traps Triggered 23 | . . . . . . . 2 2 8 . 9 . 2 Indirectly . | . . . . . . . . . . . . . . Trap Hack Attempts . | . . . . . . . . . . . . . . Triggered . | . . . . . . . . . . . . . . Disarmed . | . . . . . . . . . . . . . . Reprogrammed . | . . . . . . . . . . . . . . Reused . | . . . . . . . . . . . . . . Traps Extracted . | . . . . . . . . . . . . . . Installed . | . . . . . . . . . . . . . . Triggered 1 | . . . . . . . . 1 . . . . . Machines | -11 -10 -10 -10 -9 -8 -7 -7 -7 -7 -6 -6 -6 -6 ---------- Run | Scr Mat Min Exi Min Mat Fac Gar Fac Gar Fac Gar Fac Gar Machines Disabled 12 | . . . . . . . 2 2 4 . 3 . 1 Max in Single Turn 1 | . . . . . . . 1 1 1 . 1 . 1 Garrison Relay 10 | . . . . . . . 2 . 4 . 3 . 1 Machines Sabotaged . | . . . . . . . . . . . . . . Garrisons Compromised 1 | . . . . . . . . 1 . . . . . Overloaded Fab Kills . | . . . . . . . . . . . . . . Fab Network Shutdowns . | . . . . . . . . . . . . . . Hacking | -11 -10 -10 -10 -9 -8 -7 -7 -7 -7 -6 -6 -6 -6 --------- Run | Scr Mat Min Exi Min Mat Fac Gar Fac Gar Fac Gar Fac Gar Machines Accessed 18 | . 4 . 2 1 . 1 . 5 . 3 . 2 . Terminals 8 | . 4 . . . . . . 2 . 1 . 1 . Fabricators 2 | . . . . . . . . 2 . . . . . Repair Stations . | . . . . . . . . . . . . . . Recycling Units 1 | . . . . . . . . . . 1 . . . Scanalyzers . | . . . . . . . . . . . . . . Garrison Access 4 | . . . . . . 1 . 1 . 1 . 1 . Total Hacks 35 | . 11 . 2 1 . 2 . 8 . 6 . 5 . Successful 17 | . 6 . 2 1 . 1 . 2 . 3 . 2 . Failed 18 | . 5 . . . . 1 . 6 . 3 . 3 . Catastrophic 9 | . 3 . . . . . . 4 . 2 . . . Database Lockouts . | . . . . . . . . . . . . . . Manual 13 | . 8 . 1 . . . . 2 . 2 . . . Terminals 19 | . 11 . . . . . . 4 . 1 . 3 . Fabricators 2 | . . . . . . . . 2 . . . . . Repair Stations . | . . . . . . . . . . . . . . Recycling Units 4 | . . . . . . . . . . 4 . . . Scanalyzers . | . . . . . . . . . . . . . . Garrison Access 7 | . . . . . . 2 . 2 . 1 . 2 . Terminal Hacks 8 | . 5 . 2 1 . . . . . . . . . Record 2 | . 1 . 1 . . . . . . . . . . Robot Analysis 1 | . 1 . . . . . . . . . . . . Open Door 1 | . . . . 1 . . . . . . . . . Branch Access Points 1 | . 1 . . . . . . . . . . . . Unreport Threat 1 | . 1 . . . . . . . . . . . . Dispatch Records 1 | . 1 . . . . . . . . . . . . EX-Prototype ID Bank 1 | . . . 1 . . . . . . . . . . Fabricator Hacks . | . . . . . . . . . . . . . . Repair Station Hacks . | . . . . . . . . . . . . . . Recycling Unit Hacks 1 | . . . . . . . . . . 1 . . . Retrieve Components 1 | . . . . . . . . . . 1 . . . Scanalyzer . | . . . . . . . . . . . . . . Garrison Access Hacks 6 | . . . . . . 1 . 2 . 1 . 2 . Unlock Access 4 | . . . . . . 1 . 1 . 1 . 1 . Coupler Status 2 | . . . . . . . . 1 . . . 1 . Unauthorized Hacks 2 | . 1 . . . . . . . . 1 . . . Terminals 1 | . 1 . . . . . . . . . . . . Botnet 1 | . 1 . . . . . . . . . . . . Fabricators . | . . . . . . . . . . . . . . Repair Stations . | . . . . . . . . . . . . . . Recycling Units 1 | . . . . . . . . . . 1 . . . Tunnel 1 | . . . . . . . . . . 1 . . . Scanalyzers . | . . . . . . . . . . . . . . Garrison Access . | . . . . . . . . . . . . . . Data Cores Recovered . | . . . . . . . . . . . . . . Used . | . . . . . . . . . . . . . . Hacking Detections 14 | . 4 . . . . 1 . 4 . 3 . 2 . Full Trace Events . | . . . . . . . . . . . . . . Feedback Events . | . . . . . . . . . . . . . . Feedback Blocked . | . . . . . . . . . . . . . . Robot Schematics Acquired . | . . . . . . . . . . . . . . Robots Built . | . . . . . . . . . . . . . . Matter . | . . . . . . . . . . . . . . Time . | . . . . . . . . . . . . . . Total Robot Build Rating . | . . . . . . . . . . . . . . Part Schematics Acquired . | . . . . . . . . . . . . . . Parts Built . | . . . . . . . . . . . . . . Matter . | . . . . . . . . . . . . . . Time . | . . . . . . . . . . . . . . Total Part Build Rating . | . . . . . . . . . . . . . . Parts Repaired . | . . . . . . . . . . . . . . Time . | . . . . . . . . . . . . . . Parts Recycled . | . . . . . . . . . . . . . . Recycled Matter . | . . . . . . . . . . . . . . Retrieved Matter . | . . . . . . . . . . . . . . Retrieved Components . | . . . . . . . . . . . . . . Parts Scanalyzed . | . . . . . . . . . . . . . . Part Schematics Acquired . | . . . . . . . . . . . . . . Parts Damaged . | . . . . . . . . . . . . . . Bothacking | -11 -10 -10 -10 -9 -8 -7 -7 -7 -7 -6 -6 -6 -6 ------------ Run | Scr Mat Min Exi Min Mat Fac Gar Fac Gar Fac Gar Fac Gar Used RIF Installer 3 | . . . . . . . 1 . 1 . 1 . . Robot Detection 1 | . . . . . . . . . . . 1 . . Patrol Navigation 1 | . . . . . . . . . 1 . . . . Robots Hacked 18 | . . . . . . . . . . . 15 . 3 Non-combat . | . . . . . . . . . . . . . . Combat 18 | . . . . . . . . . . . 15 . 3 Robot Hacks Applied 20 | . . . . . . . . . . . 17 . 3 parse_system 4 | . . . . . . . . . . . 2 . 2 amplify_resonance 3 | . . . . . . . . . . . 3 . . reboot_system 2 | . . . . . . . . . . . 2 . . overwrite_iff 10 | . . . . . . . . . . . 9 . 1 formatsys_high 1 | . . . . . . . . . . . 1 . . Relay Couplers Released 42 | . . . . . . . 8 . 16 . 13 . 5 Machine Destruction 42 | . . . . . . . 8 . 16 . 13 . 5 Attached 16 | . . . . . . . 1 . 3 1 7 1 3 Robots Rewired 6 | . . . . . . . . . . . . . 6 Allies Hacked . | . . . . . . . . . . . . . . Hacks Repelled . | . . . . . . . . . . . . . . Allies | -11 -10 -10 -10 -9 -8 -7 -7 -7 -7 -6 -6 -6 -6 -------- Run | Scr Mat Min Exi Min Mat Fac Gar Fac Gar Fac Gar Fac Gar Total Allies 36 | . . . . 1 . . . 18 . . 10 . 7 Largest Group 16 | . . . . 1 . . . 16 . . 2 . 6 Highest-Rated Group 638 | . . . . 31 . . . 638 . . 79 . 132 Highest-Rated Ally 74 | . . . . 31 . . . 74 . . 47 . 32 Total Orders . | . . . . . . . . . . . . . . Ally Attacks 81 | . . . . . . . . 39 . . 32 . 10 Total Damage 2005 | . . . . . . . . 876 . . 816 . 313 Kills 15 | . . . . . . . . 8 . . 5 . 2 Allies Corrupted . | . . . . . . . . . . . . . . Allies Melted . | . . . . . . . . . . . . . . Intel | -11 -10 -10 -10 -9 -8 -7 -7 -7 -7 -6 -6 -6 -6 ------- Run | Scr Mat Min Exi Min Mat Fac Gar Fac Gar Fac Gar Fac Gar Robot Analysis Total 1 | . 1 . . . . . . . . . . . . Derelict Logs Recovered 3 | . . 1 . 2 . . . . . . . . . Drone Launches . | . . . . . . . . . . . . . . Drone Recoveries . | . . . . . . . . . . . . . . Exploration | -11 -10 -10 -10 -9 -8 -7 -7 -7 -7 -6 -6 -6 -6 ------------- Run | Scr Mat Min Exi Min Mat Fac Gar Fac Gar Fac Gar Fac Gar Turns Passed 11022 | 7 671 718 381 888 579 142 719 1632 1337 328 2528 360 732 Spaces Moved 5963 | 4 421 524 274 329 290 103 455 883 803 174 1232 156 315 Core 4 | . . . . . . . . . . . 4 . . Treads 698 | . . . 33 329 55 . . . . . 116 156 9 Legs 2260 | 4 421 524 241 . 29 . . . . . 735 . 306 Wheels 3001 | . . . . . 206 103 455 883 803 174 377 . . Hover . | . . . . . . . . . . . . . . Flight . | . . . . . . . . . . . . . . Fastest Speed 100 | 120 120 120 120 260 115 130 130 130 130 100 115 160 120 Average Speed 140 | 120 120 120 135 260 132 130 130 130 130 114 152 160 129 Slowest Speed 900 | 120 120 120 260 260 360 130 130 130 130 115 900 160 440 Overloaded Moves . | . . . . . . . . . . . . . . Propulsion Burnouts . | . . . . . . . . . . . . . . Robots Hopped . | . . . . . . . . . . . . . . Cave-ins Triggered . | . . . . . . . . . . . . . . Exploration Rate (%) 45 | 2 66 98 69 89 24 4 48 21 78 5 87 4 43 Regions Visited 13 Branch Regions 3 Pre-discovered Areas 3 | . . . 1 1 . . . . . 1 . . . Known Exits Taken 6 | . 1 . . . 1 1 . 1 . 1 . 1 . Unknown Exits Taken 4 | 1 . 1 1 1 . . . . . . . . . Scrap Searched 3 | . . 1 . 2 . . . . . . . . . Spaces Dug 4 | . . . . . . . . . . 4 . . . Terrain Destroyed 115 | . . . . 31 7 1 . 15 10 7 38 3 3 Melee 4 | . . . . . . . . . . 4 . . . Projectile 60 | . . . . . 7 1 . 15 3 3 25 3 3 AOE 51 | . . . . 31 . . . . 7 . 13 . . Terrain Rammed . | . . . . . . . . . . . . . . Walls Destroyed . | . . . . . . . . . . . . . . Machines Disabled . | . . . . . . . . . . . . . . Actions | -11 -10 -10 -10 -9 -8 -7 -7 -7 -7 -6 -6 -6 -6 --------- Run | Scr Mat Min Exi Min Mat Fac Gar Fac Gar Fac Gar Fac Gar Total 7802 | 7 520 565 284 350 452 109 535 1237 985 290 1694 248 526 Wait 714 | . 14 6 . . 31 . 13 249 24 75 201 67 34 Move 5954 | 3 420 523 273 328 289 103 454 883 802 174 1231 156 315 Hop . | . . . . . . . . . . . . . . Pick Up 132 | 2 16 1 4 8 26 2 5 5 6 20 21 1 15 Fast Attach 63 | . 2 1 . . 13 . 3 8 4 1 21 1 9 Attach 52 | . 2 . . . 10 2 3 2 4 2 12 1 14 Detach 18 | . 2 . . . 6 . . 1 2 . 5 . 2 Swap 94 | . 8 4 4 4 8 . 7 7 11 3 27 3 8 Drop 127 | 2 18 5 3 2 38 . 8 15 7 6 18 2 3 Fire 455 | . 38 25 . 8 28 2 26 67 61 4 117 5 74 Melee 21 | . . . . . 2 . . . . 4 15 . . Ram 2 | . . . . . 1 . . . . 1 . . . Kick . | . . . . . . . . . . . . . . Crush 12 | . . . . . . . . . . . . 12 . Escape Stasis 122 | . . . . . . . 16 . 64 . 26 . 16 Rewire 36 | . . . . . . . . . . . . . 36 Trap . | . . . . . . . . . . . . . . Miscellaneous . | . . . . . . . . . . . . . . Route ------- -11/Scrapyard -10/Materials (discovered 3 exits: [*Mat x2] / *Min) -10/Mines (discovered 3 exits: [*Mat x2] / *Exi) -10/Exiles -9/Mines (discovered 2 exits: [*Mat x2]) -8/Materials (discovered 2 exits: *Fac x2) -7/Factory (discovered 2 exits: *Fac / Gar) -7/Garrison (discovered 2 exits: *Fac x2) -7/Factory -7/Garrison (discovered 3 exits: *Fac x3) -6/Factory -6/Garrison (discovered 3 exits: *Fac x3) -6/Factory -6/Garrison History --------- Turn | Location | Event 3 | -11/Scrapyard | Discovered new exit (range 1) 8 | -11/Scrapyard | Entered Materials 266 | -10/Materials | Identified exit to Mines 291 | -10/Materials | Discovered new exit (range 8) 301 | -10/Materials | Build established: Mutant 583 | -10/Materials | Discovered new exit (range 7) 679 | -10/Materials | Entered Mines 686 | -10/Mines | Met a Derelict bent on vengeance 937 | -10/Mines | Core integrity fell below 50% 970 | -10/Mines | Discovered new exit (range 11) 1024 | -10/Mines | Learned 2 Materials zone layouts 1029 | -10/Mines | Discovered new exit (range 16) 1186 | -10/Mines | Deemed a non-threat by the Exiles lab entrance 1186 | -10/Mines | Discovered new exit (range 5) 1397 | -10/Mines | Entered Exiles 1427 | -10/Exiles | Met 8R-AWN 1448 | -10/Exiles | Met EX-HEX 1480 | -10/Exiles | Met EX-BIN 1493 | -10/Exiles | Aligned with FarCom system 1495 | -10/Exiles | Given EX-Vault access code 1523 | -10/Exiles | Opened EX-Vault 1533 | -10/Exiles | Found Latent Energy Streamer 1551 | -10/Exiles | Build established: Scavenger-Mutant 1556 | -10/Exiles | Warned to stay clear of 0b10 Research branches 1592 | -10/Exiles | Met EX-DEC 1608 | -10/Exiles | Learned location of Zion (-7) 1755 | -10/Exiles | Discovered new exit (range 10) 1778 | -10/Exiles | Left Exiles lab with Latent Energy Streamer 1778 | -10/Exiles | Entered Mines 1781 | -9/Mines | Received a Mining Laser from a helpful Derelict 1895 | -9/Mines | Found the Drone Emporium 1907 | -9/Mines | Found Prototype Device 1986 | -9/Mines | Build established: Mutant 2080 | -9/Mines | Found a hidden stash of uninstalled traps 2241 | -9/Mines | A weapon hastily lodged in a ceiling crevice suddenly fell to the ground 2358 | -9/Mines | Discovered new exit (range 15) 2528 | -9/Mines | Learned location of 1 exit from Materials 2656 | -9/Mines | Discovered new exit (range 5) 2666 | -9/Mines | Entered Materials 2666 | -8/Materials | Evolved 4 slots: Propulsion x1, Utility x3 2667 | -8/Materials | Identified exit to Factory 2797 | -8/Materials | Identified Bomb Drone Bay 3128 | -8/Materials | Discovered exit to Factory (range 16) 3245 | -8/Materials | Entered Factory 3245 | -7/Factory | Evolved 2 slots: Utility x2 3321 | -7/Factory | Discovered new exit (range 15) 3381 | -7/Factory | Identified exit to Factory 3387 | -7/Factory | Identified exit to Garrison 3387 | -7/Factory | Entered Garrison 3462 | -7/Garrison | Triggered checkpoint 3572 | -7/Garrison | Discovered new exit (range 14) 3599 | -7/Garrison | Identified exit to Factory 3608 | -7/Garrison | Installed Relay Interface Framework 3656 | -7/Garrison | Triggered checkpoint 3743 | -7/Garrison | Garrison Relay disabled 3846 | -7/Garrison | Triggered checkpoint 3884 | -7/Garrison | Triggered checkpoint 3921 | -7/Garrison | Discovered exit to Factory (range 15) 4008 | -7/Garrison | Triggered checkpoint 4047 | -7/Garrison | Garrison Relay disabled 4106 | -7/Garrison | Entered Factory 4369 | -7/Factory | Build established: Bothacker-Mutant 5546 | -7/Factory | Cargo convoy interrupted 5706 | -7/Factory | First assault squad dispatched 5734 | -7/Factory | Build established: Mutant 5738 | -7/Factory | Identified exit to Garrison 5738 | -7/Factory | Entered Garrison 5957 | -7/Garrison | Triggered checkpoint 5964 | -7/Garrison | Triggered checkpoint 6072 | -7/Garrison | Triggered checkpoint 6084 | -7/Garrison | Discovered exit to Factory (range 14) 6107 | -7/Garrison | Expanded RIF knowledge: Patrol Navigation 6159 | -7/Garrison | Garrison Relay disabled 6373 | -7/Garrison | Discovered exit to Factory (range 12) 6410 | -7/Garrison | Triggered checkpoint 6416 | -7/Garrison | Core integrity fell below 50% 6466 | -7/Garrison | Garrison Relay disabled 6579 | -7/Garrison | Triggered checkpoint 6631 | -7/Garrison | Discovered exit to Factory (range 8) 6652 | -7/Garrison | Triggered checkpoint 6701 | -7/Garrison | Garrison Relay disabled 6767 | -7/Garrison | Build established: Bothacker-Mutant 6861 | -7/Garrison | Triggered checkpoint 6907 | -7/Garrison | Garrison Relay disabled 7075 | -7/Garrison | Entered Factory 7075 | -6/Factory | Evolved 2 slots: Propulsion x1, Utility x1 7403 | -6/Factory | Identified exit to Garrison 7403 | -6/Factory | Entered Garrison 7485 | -6/Garrison | Lost 6 parts (1p3u2w) 7840 | -6/Garrison | Triggered checkpoint 7844 | -6/Garrison | Triggered checkpoint 7884 | -6/Garrison | Lost 3 parts (1p1n1u) 8029 | -6/Garrison | Discovered new exit (range 10) 8048 | -6/Garrison | Triggered checkpoint 8085 | -6/Garrison | Garrison Relay disabled 8178 | -6/Garrison | Triggered checkpoint 8233 | -6/Garrison | Lost 4 parts (2n1u1w) 8270 | -6/Garrison | Triggered checkpoint 8300 | -6/Garrison | Core integrity fell below 50% 8315 | -6/Garrison | Lost 5 parts (2n2u1w) 8688 | -6/Garrison | Discovered new exit (range 10) 9116 | -6/Garrison | Garrison Relay disabled 9314 | -6/Garrison | Triggered checkpoint 9325 | -6/Garrison | Garrison Relay disabled 9404 | -6/Garrison | Discovered new exit (range 15) 9502 | -6/Garrison | Expanded RIF knowledge: Robot Detection 9619 | -6/Garrison | Lost 3 parts (2n1u) 9931 | -6/Garrison | Entered Factory 10291 | -6/Factory | Identified exit to Garrison 10291 | -6/Factory | Entered Garrison 10306 | -6/Garrison | Triggered checkpoint 10370 | -6/Garrison | Lost 5 parts (2n1u2w) 10397 | -6/Garrison | Garrison Relay disabled 10461 | -6/Garrison | Core integrity fell below 20% 10606 | -6/Garrison | Lost 9 parts (4n2u3w) 10635 | -6/Garrison | Spotted B-75 Beast 10974 | -6/Garrison | Triggered checkpoint 11023 | -6/Garrison | Destroyed by B-75 Beast with Heavy Plasma Cannon Last Messages --------------- 10988_ Fighter 5c destroyed. 10989_ Field strength at 10. 10990_ Field strength at 5. 10991_ Slug penetrates Y-54 Guardian. 10991_ Stasis field depleted. 10991_ Fighter 5a destroyed. 10992_ Imp 5c sneak attacks. 10992_ Y-54 Guardian Lgt. Treads blown off. 10992_ Y-54 Guardian Flak Gun blown off. 10992_ Y-54 Guardian Imp. Light Armor Plating blown off. 10992_ Imp 5c destroyed. 10993_ Y-54 Guardian reactivates. 10994_ Slug penetrates Y-54 Guardian. 10994_ Y-54 Guardian destroyed. 10994_ Slug penetrates Reinforced Barrier. 10998_ Slug penetrates Wall. 11004_ Railgun destroyed. 11006_ Jacked B-75 Beast... 11010_ Carbon-fiber Leg destroyed. 11022_ System corrupted: Heat flow error (+264). Map ----- +----------------------------------------------------+ | ????????????????????????# ###### #??????????# | | ????????????????????????# #????### #??????????# | | ????????????????????????#[#??????# #??????????# | | ????????????????????????# #??????# #??????????# | | ???????????????????????## ##?????# #??????????# | | ???????????????????????#[ !#?????#^^^#??????????# | | ???????????????????????#[ !#####?" #??????????# | | ???????????????????????#[ #?" #??????????# | | ???????????????????????#[ #####?" #??????????# | | ???????????????????????#[ #?????# #??????????# | | ???????????????????????## ##?????# #??????????# | | ????????????????????????# #??????# #??????????# | | ????????????????????????# #??????# #??????????# | | ????????????????????????# #??????# #??????????# | | ????????????????????????# ######g" #??????????# | | ????????????????????????# [ #g" #??????????# | | ????????????????????????#[######g" #??????????# | | ????????????????????????# #??????# #??????????# | | ????????????????????????#=######## #??????????# | | ????????????????????????#[ [ ! # #??????????# | | ?????????????????#####??#=######## #??????????# | | ?????????????#???# %%[??# #??????# #??????????# | | ????????????## ## [%%###=######## #??????????# | | ??????????### =!%!%%=! #??????????# | | ??????? !====!%** ############ | | ??????? =%==* @%% | | ??????????### ## *!## [%####################### | | ????????????#????# ;; [=#?????????????????????? | | ???????????g??? BB %!! #???????????????????? | | ???????????g? BB = #???????????????????? | | ????????????" #???????????????????? | | ????????????" #???????????????????? | | ????????????# ## ## ###???????????????????? | | ????????????# ?# ?# #?????????????????????? | | ????????????# ? ? #?????????????????????? | | ????????????# ? ?? #?????????????????????? | | ????????????#? ?? #?????????????????????? | | ?????????????# ##"""??# ##?????????????????????? | | ?????????????# ??x????# #??????????????????????? | | ???????????????????????? #??????????????????????? | | ???????????????????????? ???????????????????????? | | ???????????????????????? ???????????????????????? | | ???????????????????????? ???????????????????????? | | ?????????????????????????????????????????????????? | | ?????????????????????????????????????????????????? | | ?????????????????????????????????????????????????? | | ?????????????????????????????????????????????????? | | ?????????????????????????????????????????????????? | | ?????????????????????????????????????????????????? | | ?????????????????????????????????????????????????? | +----------------------------------------------------+ Best States ------------- Heat Dissipation 56 Energy Generation 18 Energy Capacity 290 Matter Stores 300 Matter Capacity 300 Sight Range 16 Terrain Scan Range 16 Terrain Scan Density 60 Armor Coverage 450 Resistance: KI 30 Core Shielding 20 Weapon Shielding 33 Weapon Cycling 20 Evasion (%) 55 Targeting Accuracy 16 Recoil Reduction 3 Kinecelleration 40 Salvage Targeting 6 Relay Coupler Types 138 Relay Coupler Value 4 Item Schematics ----------------- None Robot Schematics ------------------ None Fabricated ------------ Nothing Alien Tech Used ----------------- None Achievements -------------- None Challenges ------------ None Game ------ Seed GaussMetafiberTendrils Manual? 0 Play Time 01:42:57 Cumulative 337.3 hours Start 2021.07.15 @ 03:02:55 End 2021.07.15 @ 16:39:07 Sessions 11 Manual Loads 0 Difficulty Rogue Special Mode None Game No. 173 Rogue 170 Adventurer 1 Explorer 2 Win Type - Total 5 Types 3/1/1/0/0/0/0/0/0 Lore% 81 Gallery% 89 Achievement% 69 Wizard Run 0 Options --------- ASCII 0 Keyboard 1 Movement Numpad Keybinds 1 Fullscreen 1 Font 24/Terminus Map View 76x50 Tactical HUD 1 Map Filters NONE Filters LOW_CONTRAST(0,0,0) Steam 1 RUN: 09f07c10-4f60-407b-b7d3-594a0b216d1d